[Event "Titled Tuesday Blitz April 4 Early 2023"]
[White "Chandreyee, Hajra"]
[Black "Nikologorskiy, Konstantin"]
[WhiteFideId "5056535"]
[BlackFideId "24111708"]
[WhiteElo "1725"]
[BlackElo "2293"]
[Result "0-1"]
[Round "08"]
[TimeControl "180+2"]
[Date "2023.04.04"]
[WhiteClock "0:00:17"]
[BlackClock "0:00:04"]

1. e4 {[%clk 0:03:00]}  c5 {[%clk 0:03:00]} 2. Nf3 {[%clk 0:03:00]}  d6 {[%clk 0:03:00]} 3. d4 {[%clk 0:03:00]}  cxd4 {[%clk 0:03:01]} 4. Nxd4 {[%clk 0:03:00]}  Nf6 {[%clk 0:03:02]} 5. Nc3 {[%clk 0:03:00]}  a6 {[%clk 0:03:02]} 6. Bg5 {[%clk 0:03:00]}  Nbd7 {[%clk 0:03:02]} 7. Bc4 {[%clk 0:02:58]}  Qb6 {[%clk 0:02:46]} 8. Bb3 {[%clk 0:02:53]}  e6 {[%clk 0:02:46]} 9. Qd2 {[%clk 0:02:48]}  Be7 {[%clk 0:02:46]} 10. O-O-O {[%clk 0:02:47]}  Nc5 {[%clk 0:02:40]} 11. Rhe1 {[%clk 0:02:43]}  Qc7 {[%clk 0:02:36]} 12. f4 {[%clk 0:02:41]}  O-O {[%clk 0:01:50]} 13. e5 {[%clk 0:02:36]}  Ne8 {[%clk 0:01:50]} 14. Bxe7 {[%clk 0:02:32]}  Qxe7 {[%clk 0:01:51]} 15. exd6 {[%clk 0:02:29]}  Nxd6 {[%clk 0:01:52]} 16. f5 {[%clk 0:02:28]}  Nxb3+ {[%clk 0:01:43]} 17. axb3 {[%clk 0:02:28]}  Nb5 {[%clk 0:01:44]} 18. Nd5 {[%clk 0:02:20]}  Qh4 {[%clk 0:01:34]} 19. Nb6 {[%clk 0:02:12]}  Rb8 {[%clk 0:01:28]} 20. fxe6 {[%clk 0:02:03]}  Bxe6 {[%clk 0:01:18]} 21. g3 {[%clk 0:01:34]}  Qh3 {[%clk 0:01:13]} 22. Nxb5 {[%clk 0:01:25]}  axb5 {[%clk 0:01:11]} 23. Qf2 {[%clk 0:01:18]}  Rfd8 {[%clk 0:00:50]} 24. b4 {[%clk 0:01:12]}  Qg4 {[%clk 0:00:47]} 25. b3 {[%clk 0:01:10]}  Qxb4 {[%clk 0:00:46]} 26. Kb2 {[%clk 0:00:44]}  g6 {[%clk 0:00:39]} 27. h4 {[%clk 0:00:43]}  h5 {[%clk 0:00:38]} 28. Qf6 {[%clk 0:00:38]}  Rxd1 {[%clk 0:00:31]} 29. Rxd1 {[%clk 0:00:38]}  Qc5 {[%clk 0:00:27]} 30. Nd7 {[%clk 0:00:33]}  Bxd7 {[%clk 0:00:20]} 31. Rxd7 {[%clk 0:00:33]}  Rf8 {[%clk 0:00:19]} 32. Ka2 {[%clk 0:00:25]}  Qxc2+ {[%clk 0:00:17]} 33. Ka3 {[%clk 0:00:25]}  Qc5+ {[%clk 0:00:07]} 34. Kb2 {[%clk 0:00:23]}  b4 {[%clk 0:00:08]} 35. Qd4 {[%clk 0:00:21]}  Qf5 {[%clk 0:00:05]} 36. Qd3 {[%clk 0:00:19]}  Qf2+ {[%clk 0:00:03]} 37. Kb1 {[%clk 0:00:18]}  Re8 {[%clk 0:00:02]} 38. Qc2 {[%clk 0:00:17]}  Re1+ {[%clk 0:00:01]} 39. Kb2 {[%clk 0:00:17]}  Re2 {[%clk 0:00:02]} 40. Rd8+ {[%clk 0:00:17]}  Kg7 {[%clk 0:00:02]} 41. Rg8+ {[%clk 0:00:17]}  Kxg8 {[%clk 0:00:02]} 42. Kb1 {[%clk 0:00:17]}  Rxc2 {[%clk 0:00:03]} 43. Ka1 {[%clk 0:00:17]}  Qd2 {[%clk 0:00:04]} 44. Kb1 {[%clk 0:00:17]}  Qc1# {[%clk 0:00:04]} 0-1


[Site "https://www.chess.com"]

[Event "Titled Tuesday Blitz April 4 Early 2023"]
[White "Silva Lucena, Cristian"]
[Black "Mendez Fortes, Eduardo Jesus"]
[WhiteFideId "2232588"]
[BlackFideId "3502376"]
[WhiteElo "2223"]
[BlackElo "2307"]
[Result "0-1"]
[Round "08"]
[TimeControl "180+2"]
[Date "2023.04.04"]
[WhiteClock "0:02:00"]
[BlackClock "0:02:36"]

1. d4 {[%clk 0:03:00]}  Nf6 {[%clk 0:02:59]} 2. c4 {[%clk 0:03:00]}  e6 {[%clk 0:03:00]} 3. Nc3 {[%clk 0:02:58]}  Bb4 {[%clk 0:02:58]} 4. Qc2 {[%clk 0:02:58]}  O-O {[%clk 0:02:58]} 5. e4 {[%clk 0:02:59]}  d5 {[%clk 0:02:58]} 6. e5 {[%clk 0:03:00]}  Ne4 {[%clk 0:02:59]} 7. Bd3 {[%clk 0:03:00]}  c5 {[%clk 0:02:59]} 8. Nf3 {[%clk 0:03:00]}  cxd4 {[%clk 0:02:59]} 9. Nxd4 {[%clk 0:03:01]}  Nd7 {[%clk 0:02:59]} 10. Bf4 {[%clk 0:02:58]}  Qh4 {[%clk 0:02:56]} 11. g3 {[%clk 0:02:58]}  Qh5 {[%clk 0:02:50]} 12. Be2 {[%clk 0:02:52]}  Qg6 {[%clk 0:02:47]} 13. Bd3 {[%clk 0:02:26]}  Ndc5 {[%clk 0:02:47]} 14. O-O-O {[%clk 0:02:09]}  Nxd3+ {[%clk 0:02:44]} 15. Rxd3 {[%clk 0:02:06]}  Bxc3 {[%clk 0:02:37]} 16. bxc3 {[%clk 0:02:00]}  Nxf2 {[%clk 0:02:36]} 0-1


[Site "https://www.chess.com"]

[Event "Titled Tuesday Blitz April 4 Early 2023"]
[White "Rizzo, Tobias"]
[Black "Fiorito, Francisco"]
[WhiteFideId "30942691"]
[BlackFideId "180165"]
[WhiteElo "2434"]
[BlackElo "2341"]
[Result "1/2-1/2"]
[Round "08"]
[TimeControl "180+2"]
[Date "2023.04.04"]
[WhiteClock "0:00:06"]
[BlackClock "0:00:05"]

1. d4 {[%clk 0:03:00]}  Nf6 {[%clk 0:02:59]} 2. Bg5 {[%clk 0:03:01]}  Ne4 {[%clk 0:02:58]} 3. h4 {[%clk 0:03:01]}  d5 {[%clk 0:02:56]} 4. Nd2 {[%clk 0:03:01]}  h6 {[%clk 0:02:49]} 5. Bf4 {[%clk 0:02:56]}  Bf5 {[%clk 0:02:39]} 6. e3 {[%clk 0:02:51]}  c5 {[%clk 0:02:36]} 7. Nxe4 {[%clk 0:02:47]}  Bxe4 {[%clk 0:02:36]} 8. c3 {[%clk 0:02:43]}  Nc6 {[%clk 0:02:35]} 9. Bd3 {[%clk 0:02:41]}  Bxd3 {[%clk 0:02:24]} 10. Qxd3 {[%clk 0:02:40]}  Qb6 {[%clk 0:02:25]} 11. Ne2 {[%clk 0:02:30]}  e6 {[%clk 0:02:19]} 12. O-O {[%clk 0:02:29]}  Be7 {[%clk 0:02:14]} 13. h5 {[%clk 0:02:25]}  a6 {[%clk 0:02:13]} 14. a3 {[%clk 0:02:24]}  Rc8 {[%clk 0:02:02]} 15. b4 {[%clk 0:02:16]}  cxd4 {[%clk 0:02:00]} 16. cxd4 {[%clk 0:02:16]}  Na7 {[%clk 0:01:59]} 17. Rfc1 {[%clk 0:02:14]}  O-O {[%clk 0:01:58]} 18. Nc3 {[%clk 0:02:13]}  Rc4 {[%clk 0:01:54]} 19. Na4 {[%clk 0:02:12]}  Qb5 {[%clk 0:01:50]} 20. Nb2 {[%clk 0:02:06]}  Rxc1+ {[%clk 0:01:25]} 21. Rxc1 {[%clk 0:02:07]}  Qxd3 {[%clk 0:01:23]} 22. Nxd3 {[%clk 0:02:08]}  Rc8 {[%clk 0:01:24]} 23. Rxc8+ {[%clk 0:01:34]}  Nxc8 {[%clk 0:01:24]} 24. Nc5 {[%clk 0:01:35]}  Bxc5 {[%clk 0:01:21]} 25. dxc5 {[%clk 0:01:32]}  Na7 {[%clk 0:01:20]} 26. Be5 {[%clk 0:01:26]}  f6 {[%clk 0:01:19]} 27. Bb2 {[%clk 0:01:25]}  Nc6 {[%clk 0:01:17]} 28. Kf1 {[%clk 0:01:23]}  Kf7 {[%clk 0:01:18]} 29. Ke2 {[%clk 0:01:23]}  e5 {[%clk 0:01:18]} 30. f4 {[%clk 0:01:20]}  Ke6 {[%clk 0:01:18]} 31. Kf3 {[%clk 0:01:13]}  Kf5 {[%clk 0:00:45]} 32. g4+ {[%clk 0:01:11]}  Ke6 {[%clk 0:00:45]} 33. Ba1 {[%clk 0:01:01]}  Na7 {[%clk 0:00:17]} 34. Bb2 {[%clk 0:01:00]}  Nc8 {[%clk 0:00:12]} 35. Ba1 {[%clk 0:00:58]}  b6 {[%clk 0:00:11]} 36. fxe5 {[%clk 0:00:17]}  fxe5 {[%clk 0:00:10]} 37. Bc3 {[%clk 0:00:18]}  bxc5 {[%clk 0:00:09]} 38. bxc5 {[%clk 0:00:19]}  Ne7 {[%clk 0:00:10]} 39. Bb2 {[%clk 0:00:15]}  Nc6 {[%clk 0:00:10]} 40. Bc3 {[%clk 0:00:15]}  Na7 {[%clk 0:00:11]} 41. Bd2 {[%clk 0:00:15]}  Nb5 {[%clk 0:00:11]} 42. Bb4 {[%clk 0:00:15]}  Na7 {[%clk 0:00:05]} 43. Bc3 {[%clk 0:00:13]}  Nb5 {[%clk 0:00:05]} 44. Bb4 {[%clk 0:00:13]}  Kd7 {[%clk 0:00:06]} 45. a4 {[%clk 0:00:14]}  Na7 {[%clk 0:00:06]} 46. Ke2 {[%clk 0:00:12]}  Nc8 {[%clk 0:00:04]} 47. Kd3 {[%clk 0:00:12]}  Ne7 {[%clk 0:00:05]} 48. Bc3 {[%clk 0:00:12]}  Nc6 {[%clk 0:00:05]} 49. Bb2 {[%clk 0:00:09]}  Ke6 {[%clk 0:00:05]} 50. Ke2 {[%clk 0:00:08]}  Kf6 {[%clk 0:00:06]} 51. Kf3 {[%clk 0:00:08]}  Kg5 {[%clk 0:00:06]} 52. Kg3 {[%clk 0:00:08]}  Kf6 {[%clk 0:00:05]} 53. Kf3 {[%clk 0:00:08]}  Ke6 {[%clk 0:00:06]} 54. Ke2 {[%clk 0:00:08]}  Nb4 {[%clk 0:00:07]} 55. Bc3 {[%clk 0:00:07]}  Nc6 {[%clk 0:00:05]} 56. Bb2 {[%clk 0:00:06]} 1/2-1/2


[Site "https://www.chess.com"]

[Event "Titled Tuesday Blitz April 4 Early 2023"]
[White "Koridze, Lile"]
[Black "Horak, Martin"]
[WhiteFideId "13612514"]
[BlackFideId "367095"]
[WhiteElo "2047"]
[BlackElo "2091"]
[Result "0-1"]
[Round "08"]
[TimeControl "180+2"]
[Date "2023.04.04"]
[WhiteClock "0:01:29"]
[BlackClock "0:00:40"]

1. d4 {[%clk 0:03:00]}  Nf6 {[%clk 0:02:59]} 2. c4 {[%clk 0:03:01]}  e6 {[%clk 0:03:00]} 3. Nf3 {[%clk 0:03:01]}  b6 {[%clk 0:02:55]} 4. g3 {[%clk 0:03:00]}  Ba6 {[%clk 0:02:55]} 5. b3 {[%clk 0:03:00]}  Bb4+ {[%clk 0:02:54]} 6. Bd2 {[%clk 0:03:01]}  Be7 {[%clk 0:02:55]} 7. Bg2 {[%clk 0:03:01]}  O-O {[%clk 0:02:55]} 8. O-O {[%clk 0:03:00]}  d5 {[%clk 0:02:53]} 9. Ne5 {[%clk 0:02:56]}  Bb7 {[%clk 0:02:51]} 10. Nc3 {[%clk 0:02:54]}  c5 {[%clk 0:02:33]} 11. dxc5 {[%clk 0:02:51]}  Bxc5 {[%clk 0:02:34]} 12. Bg5 {[%clk 0:02:49]}  h6 {[%clk 0:02:21]} 13. Bf4 {[%clk 0:02:38]}  Bb4 {[%clk 0:02:09]} 14. Rc1 {[%clk 0:02:31]}  Bxc3 {[%clk 0:01:48]} 15. Rxc3 {[%clk 0:02:31]}  Nbd7 {[%clk 0:01:46]} 16. Nxd7 {[%clk 0:02:22]}  Qxd7 {[%clk 0:01:46]} 17. cxd5 {[%clk 0:02:22]}  Bxd5 {[%clk 0:01:41]} 18. e4 {[%clk 0:02:01]}  Bc6 {[%clk 0:01:36]} 19. Qc2 {[%clk 0:01:55]}  Rac8 {[%clk 0:01:23]} 20. Rc1 {[%clk 0:01:49]}  Bxe4 {[%clk 0:01:10]} 21. Bxe4 {[%clk 0:01:46]}  Rxc3 {[%clk 0:01:08]} 22. Bh7+ {[%clk 0:01:46]}  Nxh7 {[%clk 0:01:08]} 23. Qxc3 {[%clk 0:01:47]}  Rd8 {[%clk 0:00:51]} 24. Qe5 {[%clk 0:01:43]}  Rc8 {[%clk 0:00:43]} 25. h4 {[%clk 0:01:30]}  Rxc1+ {[%clk 0:00:41]} 26. Bxc1 {[%clk 0:01:28]}  Qd1+ {[%clk 0:00:40]} 27. Kh2 {[%clk 0:01:29]}  Qxc1 {[%clk 0:00:40]} 0-1


[Site "https://www.chess.com"]

[Event "Titled Tuesday Blitz April 4 Early 2023"]
[White "Krysa, Leandro"]
[Black "Bruedigam, Martin"]
[WhiteFideId "116807"]
[BlackFideId "24608033"]
[WhiteElo "2489"]
[BlackElo "2331"]
[Result "0-1"]
[Round "08"]
[TimeControl "180+2"]
[Date "2023.04.04"]
[WhiteClock "0:00:06"]
[BlackClock "0:00:11"]

1. e4 {[%clk 0:02:57]}  c6 {[%clk 0:03:00]} 2. d4 {[%clk 0:02:55]}  d5 {[%clk 0:03:00]} 3. e5 {[%clk 0:02:56]}  Bf5 {[%clk 0:03:00]} 4. h4 {[%clk 0:02:54]}  Qc7 {[%clk 0:03:01]} 5. h5 {[%clk 0:02:48]}  h6 {[%clk 0:02:58]} 6. g4 {[%clk 0:02:46]}  Bd7 {[%clk 0:02:55]} 7. Nc3 {[%clk 0:02:36]}  e6 {[%clk 0:02:54]} 8. Be3 {[%clk 0:02:29]}  c5 {[%clk 0:02:53]} 9. dxc5 {[%clk 0:02:29]}  Bxc5 {[%clk 0:02:47]} 10. Bxc5 {[%clk 0:02:22]}  Qxc5 {[%clk 0:02:48]} 11. Bd3 {[%clk 0:02:22]}  Nc6 {[%clk 0:02:37]} 12. Nf3 {[%clk 0:02:20]}  a6 {[%clk 0:02:36]} 13. Qd2 {[%clk 0:02:12]}  Nge7 {[%clk 0:02:30]} 14. O-O-O {[%clk 0:02:11]}  O-O-O {[%clk 0:02:14]} 15. Kb1 {[%clk 0:02:10]}  Kb8 {[%clk 0:02:14]} 16. a3 {[%clk 0:02:08]}  Rc8 {[%clk 0:02:12]} 17. Rhe1 {[%clk 0:02:05]}  Nd4 {[%clk 0:02:00]} 18. Qf4 {[%clk 0:02:00]}  Nxf3 {[%clk 0:01:58]} 19. Qxf3 {[%clk 0:02:01]}  Rhf8 {[%clk 0:01:57]} 20. Qf4 {[%clk 0:01:43]}  Bb5 {[%clk 0:01:45]} 21. Nxb5 {[%clk 0:01:34]}  axb5 {[%clk 0:01:46]} 22. g5 {[%clk 0:01:33]}  hxg5 {[%clk 0:01:36]} 23. Qxg5 {[%clk 0:01:34]}  Nc6 {[%clk 0:01:17]} 24. Qxg7 {[%clk 0:01:15]}  b4 {[%clk 0:01:16]} 25. a4 {[%clk 0:01:16]}  b3 {[%clk 0:01:08]} 26. cxb3 {[%clk 0:01:15]}  Nd4 {[%clk 0:00:43]} 27. Rc1 {[%clk 0:00:55]}  Qb4 {[%clk 0:00:36]} 28. Qg4 {[%clk 0:00:40]}  Rg8 {[%clk 0:00:20]} 29. Qf4 {[%clk 0:00:37]}  Qb6 {[%clk 0:00:16]} 30. h6 {[%clk 0:00:28]}  Nxb3 {[%clk 0:00:15]} 31. Rxc8+ {[%clk 0:00:25]}  Rxc8 {[%clk 0:00:15]} 32. h7 {[%clk 0:00:25]}  Qc6 {[%clk 0:00:09]} 33. Rh1 {[%clk 0:00:18]}  d4 {[%clk 0:00:06]} 34. h8=Q {[%clk 0:00:16]}  Qxa4 {[%clk 0:00:06]} 35. Qxc8+ {[%clk 0:00:12]}  Kxc8 {[%clk 0:00:07]} 36. Rh8+ {[%clk 0:00:11]}  Kc7 {[%clk 0:00:06]} 37. Qxf7+ {[%clk 0:00:11]}  Kb6 {[%clk 0:00:07]} 38. Qxe6+ {[%clk 0:00:11]}  Ka7 {[%clk 0:00:08]} 39. Rc8 {[%clk 0:00:05]}  Nd2+ {[%clk 0:00:08]} 40. Kc1 {[%clk 0:00:05]}  Nb3+ {[%clk 0:00:08]} 41. Kd1 {[%clk 0:00:03]}  Nc5+ {[%clk 0:00:08]} 42. Bc2 {[%clk 0:00:02]}  Qa1+ {[%clk 0:00:09]} 43. Kd2 {[%clk 0:00:02]}  Nxe6 {[%clk 0:00:10]} 44. Rc4 {[%clk 0:00:02]}  Qa5+ {[%clk 0:00:10]} 45. Kd1 {[%clk 0:00:01]}  Qxe5 {[%clk 0:00:11]} 46. Ra4+ {[%clk 0:00:01]}  Kb6 {[%clk 0:00:10]} 47. Ra3 {[%clk 0:00:02]}  Nf4 {[%clk 0:00:10]} 48. f3 {[%clk 0:00:03]}  Qe2+ {[%clk 0:00:10]} 49. Kc1 {[%clk 0:00:04]}  Qe1+ {[%clk 0:00:10]} 50. Bd1 {[%clk 0:00:05]}  d3 {[%clk 0:00:10]} 51. Ra4 {[%clk 0:00:03]}  Ne2+ {[%clk 0:00:10]} 52. Kb1 {[%clk 0:00:03]}  Qxd1+ {[%clk 0:00:11]} 53. Ka2 {[%clk 0:00:04]}  Qxa4+ {[%clk 0:00:11]} 54. Kb1 {[%clk 0:00:05]}  Nd4 {[%clk 0:00:12]} 55. b3 {[%clk 0:00:06]}  Qxb3+ {[%clk 0:00:11]} 56. Ka1 {[%clk 0:00:06]}  Nc2# {[%clk 0:00:11]} 0-1


[Site "https://www.chess.com"]

[Event "Titled Tuesday Blitz April 4 Early 2023"]
[White "Yu, Jason"]
[Black "Volkov, Maksim"]
[WhiteFideId "30907624"]
[BlackFideId "54123070"]
[WhiteElo "2497"]
[BlackElo "2312"]
[Result "0-1"]
[Round "08"]
[TimeControl "180+2"]
[Date "2023.04.04"]
[WhiteClock "0:01:04"]
[BlackClock "0:01:26"]

1. e4 {[%clk 0:03:00]}  c5 {[%clk 0:02:45]} 2. Nf3 {[%clk 0:03:00]}  d6 {[%clk 0:02:45]} 3. d4 {[%clk 0:03:01]}  cxd4 {[%clk 0:02:46]} 4. Nxd4 {[%clk 0:03:01]}  Nf6 {[%clk 0:02:46]} 5. Nc3 {[%clk 0:03:02]}  a6 {[%clk 0:02:46]} 6. Be2 {[%clk 0:03:03]}  e5 {[%clk 0:02:46]} 7. Nb3 {[%clk 0:03:03]}  Be7 {[%clk 0:02:46]} 8. O-O {[%clk 0:03:04]}  O-O {[%clk 0:02:46]} 9. a4 {[%clk 0:03:04]}  Be6 {[%clk 0:02:43]} 10. f4 {[%clk 0:03:04]}  exf4 {[%clk 0:02:39]} 11. Bxf4 {[%clk 0:03:05]}  Nc6 {[%clk 0:02:39]} 12. Kh1 {[%clk 0:03:05]}  d5 {[%clk 0:02:40]} 13. e5 {[%clk 0:03:01]}  Ne4 {[%clk 0:02:40]} 14. Nxe4 {[%clk 0:02:39]}  dxe4 {[%clk 0:02:39]} 15. Nd2 {[%clk 0:02:23]}  Bf5 {[%clk 0:02:06]} 16. Bg4 {[%clk 0:02:16]}  Bg6 {[%clk 0:02:06]} 17. c3 {[%clk 0:02:04]}  Qd5 {[%clk 0:02:02]} 18. e6 {[%clk 0:01:58]}  fxe6 {[%clk 0:01:48]} 19. Qb3 {[%clk 0:01:52]}  Bf7 {[%clk 0:01:35]} 20. Rae1 {[%clk 0:01:42]}  Qxb3 {[%clk 0:01:31]} 21. Nxb3 {[%clk 0:01:41]}  e5 {[%clk 0:01:31]} 22. Rxe4 {[%clk 0:01:09]}  Bxb3 {[%clk 0:01:28]} 23. Rb4 {[%clk 0:01:04]}  Bxb4 {[%clk 0:01:26]} 0-1


[Site "https://www.chess.com"]

[Event "Titled Tuesday Blitz April 4 Early 2023"]
[White "Jakubowski, Krzysztof"]
[Black "Tokman, Ariel"]
[WhiteFideId "1112848"]
[BlackFideId "117420"]
[WhiteElo "2359"]
[BlackElo "2263"]
[Result "1-0"]
[Round "08"]
[TimeControl "180+2"]
[Date "2023.04.04"]
[WhiteClock "0:00:23"]
[BlackClock "0:00:22"]

1. e4 {[%clk 0:02:57]}  Nf6 {[%clk 0:02:59]} 2. e5 {[%clk 0:02:55]}  Nd5 {[%clk 0:02:59]} 3. c4 {[%clk 0:02:55]}  Nb6 {[%clk 0:02:59]} 4. d4 {[%clk 0:02:55]}  d6 {[%clk 0:02:59]} 5. exd6 {[%clk 0:02:55]}  cxd6 {[%clk 0:03:00]} 6. Nc3 {[%clk 0:02:54]}  g6 {[%clk 0:02:55]} 7. Be3 {[%clk 0:02:54]}  Bg7 {[%clk 0:02:55]} 8. Rc1 {[%clk 0:02:54]}  O-O {[%clk 0:02:52]} 9. b3 {[%clk 0:02:53]}  Bf5 {[%clk 0:02:20]} 10. g4 {[%clk 0:02:51]}  Be6 {[%clk 0:02:15]} 11. Bg2 {[%clk 0:02:44]}  d5 {[%clk 0:02:12]} 12. c5 {[%clk 0:02:27]}  Nc8 {[%clk 0:02:10]} 13. h4 {[%clk 0:02:20]}  b6 {[%clk 0:02:04]} 14. cxb6 {[%clk 0:02:14]}  axb6 {[%clk 0:01:51]} 15. h5 {[%clk 0:02:08]}  Nd6 {[%clk 0:01:52]} 16. Nh3 {[%clk 0:02:04]}  Qd7 {[%clk 0:01:42]} 17. f3 {[%clk 0:01:52]}  Nc6 {[%clk 0:01:38]} 18. Nf4 {[%clk 0:01:47]}  Rfc8 {[%clk 0:01:28]} 19. hxg6 {[%clk 0:01:43]}  hxg6 {[%clk 0:01:28]} 20. Qd2 {[%clk 0:01:10]}  Nb4 {[%clk 0:01:05]} 21. Bf1 {[%clk 0:01:03]}  Rxc3 {[%clk 0:00:54]} 22. Rxc3 {[%clk 0:00:48]}  Bxg4 {[%clk 0:00:44]} 23. Qh2 {[%clk 0:00:41]}  Bxf3 {[%clk 0:00:37]} 24. Qh7+ {[%clk 0:00:28]}  Kf8 {[%clk 0:00:36]} 25. Bh3 {[%clk 0:00:27]}  Bg4 {[%clk 0:00:25]} 26. Nxg6+ {[%clk 0:00:24]}  fxg6 {[%clk 0:00:22]} 27. O-O+ {[%clk 0:00:23]} 1-0


[Site "https://www.chess.com"]

[Event "Titled Tuesday Blitz April 4 Early 2023"]
[White "Taboas Rodriguez, Daniel"]
[Black "TheKnightOfBosnia"]
[WhiteFideId "2208466"]
[WhiteElo "2365"]
[BlackElo "2493"]
[Result "0-1"]
[Round "08"]
[TimeControl "180+2"]
[Date "2023.04.04"]
[WhiteClock "0:00:14"]
[BlackClock "0:00:19"]

1. d4 {[%clk 0:03:00]}  Nf6 {[%clk 0:03:00]} 2. Nf3 {[%clk 0:03:01]}  e6 {[%clk 0:03:00]} 3. c4 {[%clk 0:03:01]}  Bb4+ {[%clk 0:03:00]} 4. Nbd2 {[%clk 0:03:01]}  O-O {[%clk 0:03:00]} 5. a3 {[%clk 0:03:02]}  Be7 {[%clk 0:03:00]} 6. e4 {[%clk 0:03:02]}  d6 {[%clk 0:03:00]} 7. Bd3 {[%clk 0:03:01]}  Nfd7 {[%clk 0:03:00]} 8. O-O {[%clk 0:03:01]}  e5 {[%clk 0:03:00]} 9. Re1 {[%clk 0:02:59]}  exd4 {[%clk 0:02:58]} 10. Nxd4 {[%clk 0:03:00]}  Nc6 {[%clk 0:02:56]} 11. N2f3 {[%clk 0:02:57]}  Bf6 {[%clk 0:02:56]} 12. Nxc6 {[%clk 0:02:53]}  bxc6 {[%clk 0:02:56]} 13. Ra2 {[%clk 0:02:48]}  a5 {[%clk 0:02:55]} 14. b3 {[%clk 0:02:47]}  Nc5 {[%clk 0:02:54]} 15. Rae2 {[%clk 0:02:36]}  Bg4 {[%clk 0:02:53]} 16. Rd2 {[%clk 0:02:16]}  Bxf3 {[%clk 0:02:47]} 17. gxf3 {[%clk 0:02:08]}  Bg5 {[%clk 0:02:46]} 18. Rc2 {[%clk 0:01:58]}  Nxb3 {[%clk 0:02:43]} 19. f4 {[%clk 0:01:55]}  Nxc1 {[%clk 0:02:43]} 20. Qxc1 {[%clk 0:01:54]}  Bf6 {[%clk 0:02:42]} 21. Re3 {[%clk 0:01:47]}  Bd4 {[%clk 0:02:38]} 22. Rg3 {[%clk 0:01:46]}  Qh4 {[%clk 0:02:36]} 23. Kg2 {[%clk 0:01:36]}  f5 {[%clk 0:02:12]} 24. exf5 {[%clk 0:01:34]}  Qf6 {[%clk 0:02:02]} 25. Be4 {[%clk 0:01:32]}  Rab8 {[%clk 0:01:52]} 26. Qd1 {[%clk 0:01:24]}  c5 {[%clk 0:01:33]} 27. Qh5 {[%clk 0:01:23]}  Rbe8 {[%clk 0:01:26]} 28. Bd5+ {[%clk 0:01:19]}  Kh8 {[%clk 0:01:25]} 29. Be6 {[%clk 0:01:10]}  Rxe6 {[%clk 0:00:55]} 30. fxe6 {[%clk 0:01:11]}  Qxe6 {[%clk 0:00:56]} 31. Re2 {[%clk 0:00:54]}  Qxc4 {[%clk 0:00:55]} 32. Re8 {[%clk 0:00:54]}  Qg8 {[%clk 0:00:44]} 33. Re7 {[%clk 0:00:52]}  Rxf4 {[%clk 0:00:39]} 34. f3 {[%clk 0:00:41]}  g6 {[%clk 0:00:24]} 35. Qh6 {[%clk 0:00:26]}  Be5 {[%clk 0:00:20]} 36. Rxg6 {[%clk 0:00:20]}  Qxg6+ {[%clk 0:00:19]} 37. Qxg6 {[%clk 0:00:19]}  hxg6 {[%clk 0:00:20]} 38. Rxc7 {[%clk 0:00:19]}  Ra4 {[%clk 0:00:20]} 39. Rf7 {[%clk 0:00:14]}  Kg8 {[%clk 0:00:19]} 40. f4 {[%clk 0:00:14]}  Kxf7 {[%clk 0:00:19]} 0-1


[Site "https://www.chess.com"]

[Event "Titled Tuesday Blitz April 4 Early 2023"]
[White "Przybylski, Wojciech"]
[Black "Gontcharov, Vladislav"]
[WhiteFideId "1117599"]
[BlackFideId "4123492"]
[WhiteElo "2222"]
[BlackElo "2420"]
[Result "0-1"]
[Round "08"]
[TimeControl "180+2"]
[Date "2023.04.04"]
[WhiteClock "0:00:01"]
[BlackClock "0:00:04"]

1. e4 {[%clk 0:02:56]}  e6 {[%clk 0:02:59]} 2. d4 {[%clk 0:02:55]}  d5 {[%clk 0:02:59]} 3. Nc3 {[%clk 0:02:56]}  Bb4 {[%clk 0:02:58]} 4. a3 {[%clk 0:02:56]}  Bxc3+ {[%clk 0:02:58]} 5. bxc3 {[%clk 0:02:57]}  dxe4 {[%clk 0:02:58]} 6. Qg4 {[%clk 0:02:57]}  Nf6 {[%clk 0:02:57]} 7. Qxg7 {[%clk 0:02:57]}  Rg8 {[%clk 0:02:58]} 8. Qh6 {[%clk 0:02:58]}  Rg6 {[%clk 0:02:58]} 9. Qe3 {[%clk 0:02:57]}  b6 {[%clk 0:02:52]} 10. h3 {[%clk 0:02:56]}  Bb7 {[%clk 0:02:51]} 11. c4 {[%clk 0:02:56]}  Nbd7 {[%clk 0:02:46]} 12. Qc3 {[%clk 0:02:56]}  c5 {[%clk 0:02:45]} 13. Be3 {[%clk 0:02:52]}  cxd4 {[%clk 0:02:40]} 14. Bxd4 {[%clk 0:02:52]}  Rc8 {[%clk 0:02:40]} 15. O-O-O {[%clk 0:02:49]}  Qe7 {[%clk 0:02:40]} 16. Qb4 {[%clk 0:02:47]}  e5 {[%clk 0:02:18]} 17. Be3 {[%clk 0:02:37]}  Nc5 {[%clk 0:02:16]} 18. Ne2 {[%clk 0:02:33]}  Nfd7 {[%clk 0:02:09]} 19. Nc3 {[%clk 0:02:31]}  Kf8 {[%clk 0:02:01]} 20. g4 {[%clk 0:02:28]}  a5 {[%clk 0:01:59]} 21. Qb2 {[%clk 0:02:27]}  Ba6 {[%clk 0:01:52]} 22. Nd5 {[%clk 0:02:25]}  Qe6 {[%clk 0:01:50]} 23. Be2 {[%clk 0:02:16]}  Na4 {[%clk 0:01:49]} 24. Qb3 {[%clk 0:02:07]}  Ndc5 {[%clk 0:01:48]} 25. Qa2 {[%clk 0:02:07]}  Nd3+ {[%clk 0:01:39]} 26. cxd3 {[%clk 0:01:51]}  Qxd5 {[%clk 0:01:33]} 27. dxe4 {[%clk 0:01:41]}  Bxc4 {[%clk 0:01:22]} 28. Qc2 {[%clk 0:01:01]}  Qc6 {[%clk 0:01:07]} 29. Bxc4 {[%clk 0:00:28]}  b5 {[%clk 0:01:06]} 30. Bb3 {[%clk 0:00:20]}  Qb7 {[%clk 0:01:02]} 31. Bxa4 {[%clk 0:00:15]}  Rxc2+ {[%clk 0:00:54]} 32. Bxc2 {[%clk 0:00:15]}  Rc6 {[%clk 0:00:53]} 33. Kb2 {[%clk 0:00:06]}  Kg7 {[%clk 0:00:52]} 34. Rd2 {[%clk 0:00:06]}  Rc7 {[%clk 0:00:38]} 35. Rd5 {[%clk 0:00:05]}  a4 {[%clk 0:00:21]} 36. Rc1 {[%clk 0:00:04]}  b4 {[%clk 0:00:20]} 37. Bxa4 {[%clk 0:00:03]}  bxa3+ {[%clk 0:00:20]} 38. Kxa3 {[%clk 0:00:04]}  Rxc1 {[%clk 0:00:20]} 39. Bxc1 {[%clk 0:00:03]}  Qb6 {[%clk 0:00:15]} 40. Be3 {[%clk 0:00:03]}  Qb1 {[%clk 0:00:11]} 41. Bb3 {[%clk 0:00:03]}  Qa1+ {[%clk 0:00:10]} 42. Kb4 {[%clk 0:00:02]}  Qh1 {[%clk 0:00:09]} 43. Bc2 {[%clk 0:00:02]}  Qxh3 {[%clk 0:00:09]} 44. g5 {[%clk 0:00:02]}  Qh2 {[%clk 0:00:08]} 45. Kc3 {[%clk 0:00:02]}  Kg6 {[%clk 0:00:07]} 46. Kd2 {[%clk 0:00:02]}  Kg7 {[%clk 0:00:06]} 47. Rd6 {[%clk 0:00:02]}  Qh1 {[%clk 0:00:04]} 48. Rd5 {[%clk 0:00:03]}  Qh2 {[%clk 0:00:04]} 49. Ke2 {[%clk 0:00:02]}  Qh1 {[%clk 0:00:04]} 50. Rxe5 {[%clk 0:00:02]}  Qh5+ {[%clk 0:00:05]} 51. Kd2 {[%clk 0:00:02]}  Qg4 {[%clk 0:00:05]} 52. Rd5 {[%clk 0:00:02]}  Qe6 {[%clk 0:00:05]} 53. Rd4 {[%clk 0:00:02]}  Kg6 {[%clk 0:00:05]} 54. Bd3 {[%clk 0:00:02]}  Kg7 {[%clk 0:00:06]} 55. Rd5 {[%clk 0:00:03]}  Qc6 {[%clk 0:00:05]} 56. Bd4+ {[%clk 0:00:03]}  Kg6 {[%clk 0:00:05]} 57. Rb5 {[%clk 0:00:03]}  Kh5 {[%clk 0:00:05]} 58. Rb6 {[%clk 0:00:03]}  Qa4 {[%clk 0:00:04]} 59. Rf6 {[%clk 0:00:01]}  Kxg5 {[%clk 0:00:04]} 0-1


[Site "https://www.chess.com"]